[Event "Titled Tuesday Blitz May 16 Late 2023"]
[White "Loiacono, Antonio"]
[Black "Rodriguez Polo, Mateo"]
[WhiteFideId "895415"]
[BlackFideId "24509396"]
[WhiteElo "2257"]
[BlackElo "2117"]
[Result "1/2-1/2"]
[Round "07"]
[TimeControl "180+2"]
[Date "2023.05.16"]
[WhiteClock "0:00:30"]
[BlackClock "0:00:04"]

1. e4 {[%clk 0:03:00]}  e5 {[%clk 0:02:59]} 2. Nf3 {[%clk 0:03:00]}  Nc6 {[%clk 0:03:00]} 3. Nc3 {[%clk 0:03:00]}  Nf6 {[%clk 0:03:00]} 4. Bb5 {[%clk 0:03:01]}  Bb4 {[%clk 0:02:59]} 5. O-O {[%clk 0:03:00]}  O-O {[%clk 0:02:59]} 6. d3 {[%clk 0:03:01]}  Bxc3 {[%clk 0:02:59]} 7. bxc3 {[%clk 0:03:01]}  d6 {[%clk 0:02:59]} 8. Nd2 {[%clk 0:03:01]}  Ne7 {[%clk 0:02:50]} 9. d4 {[%clk 0:03:00]}  Ng6 {[%clk 0:02:46]} 10. Re1 {[%clk 0:02:59]}  h6 {[%clk 0:02:40]} 11. Nf1 {[%clk 0:02:58]}  c6 {[%clk 0:02:40]} 12. Bd3 {[%clk 0:02:57]}  Re8 {[%clk 0:02:38]} 13. Ng3 {[%clk 0:02:57]}  Bg4 {[%clk 0:02:31]} 14. f3 {[%clk 0:02:56]}  Be6 {[%clk 0:02:25]} 15. Kh1 {[%clk 0:02:56]}  Qe7 {[%clk 0:02:17]} 16. a4 {[%clk 0:02:54]}  b6 {[%clk 0:02:15]} 17. a5 {[%clk 0:02:49]}  b5 {[%clk 0:02:15]} 18. Ba3 {[%clk 0:02:49]}  Qc7 {[%clk 0:02:12]} 19. Nf1 {[%clk 0:02:43]}  Rad8 {[%clk 0:02:11]} 20. Ne3 {[%clk 0:02:33]}  d5 {[%clk 0:02:01]} 21. exd5 {[%clk 0:02:29]}  Nxd5 {[%clk 0:02:01]} 22. Nxd5 {[%clk 0:02:29]}  Bxd5 {[%clk 0:01:57]} 23. Bc5 {[%clk 0:02:26]}  Nf4 {[%clk 0:01:54]} 24. Bf1 {[%clk 0:02:24]}  exd4 {[%clk 0:01:05]} 25. cxd4 {[%clk 0:02:22]}  Be6 {[%clk 0:01:01]} 26. Qd2 {[%clk 0:02:02]}  Bf5 {[%clk 0:00:58]} 27. c4 {[%clk 0:01:49]}  Ne6 {[%clk 0:00:51]} 28. Qc3 {[%clk 0:01:34]}  Nxc5 {[%clk 0:00:51]} 29. dxc5 {[%clk 0:01:34]}  bxc4 {[%clk 0:00:34]} 30. Bxc4 {[%clk 0:01:34]}  Rxe1+ {[%clk 0:00:33]} 31. Rxe1 {[%clk 0:01:33]}  Qd7 {[%clk 0:00:33]} 32. Qb3 {[%clk 0:01:29]}  Qd2 {[%clk 0:00:31]} 33. Bxf7+ {[%clk 0:01:19]}  Kf8 {[%clk 0:00:26]} 34. Rg1 {[%clk 0:01:17]}  Rd3 {[%clk 0:00:25]} 35. Qa2 {[%clk 0:01:12]}  Qxa2 {[%clk 0:00:20]} 36. Bxa2 {[%clk 0:01:13]}  Ra3 {[%clk 0:00:21]} 37. Bb1 {[%clk 0:01:08]}  Bxb1 {[%clk 0:00:18]} 38. Rxb1 {[%clk 0:01:09]}  Rxa5 {[%clk 0:00:19]} 39. h3 {[%clk 0:01:05]}  Rxc5 {[%clk 0:00:19]} 40. Rb8+ {[%clk 0:01:05]}  Kf7 {[%clk 0:00:16]} 41. Rb7+ {[%clk 0:01:06]}  Kf6 {[%clk 0:00:17]} 42. Rxa7 {[%clk 0:01:06]}  Rc2 {[%clk 0:00:16]} 43. Kh2 {[%clk 0:01:07]}  c5 {[%clk 0:00:16]} 44. Kg3 {[%clk 0:01:07]}  c4 {[%clk 0:00:16]} 45. Rc7 {[%clk 0:01:07]}  c3 {[%clk 0:00:16]} 46. h4 {[%clk 0:01:08]}  g6 {[%clk 0:00:12]} 47. Rh7 {[%clk 0:01:04]}  Rd2 {[%clk 0:00:08]} 48. Rc7 {[%clk 0:00:58]}  c2 {[%clk 0:00:08]} 49. f4 {[%clk 0:00:54]}  Ke6 {[%clk 0:00:04]} 50. Kf3 {[%clk 0:00:54]}  Kd6 {[%clk 0:00:05]} 51. Rc8 {[%clk 0:00:53]}  Kd7 {[%clk 0:00:05]} 52. Rc4 {[%clk 0:00:52]}  Kd6 {[%clk 0:00:05]} 53. g4 {[%clk 0:00:52]}  h5 {[%clk 0:00:04]} 54. gxh5 {[%clk 0:00:48]}  gxh5 {[%clk 0:00:04]} 55. Ke3 {[%clk 0:00:48]}  Rh2 {[%clk 0:00:04]} 56. f5 {[%clk 0:00:45]}  Ke5 {[%clk 0:00:04]} 57. Rc5+ {[%clk 0:00:45]}  Kf6 {[%clk 0:00:04]} 58. Kf3 {[%clk 0:00:42]}  Rxh4 {[%clk 0:00:02]} 59. Rxc2 {[%clk 0:00:42]}  Rg4 {[%clk 0:00:02]} 60. Rc5 {[%clk 0:00:41]}  Rg5 {[%clk 0:00:02]} 61. Kf4 {[%clk 0:00:41]}  Rg4+ {[%clk 0:00:02]} 62. Kf3 {[%clk 0:00:42]}  Rg5 {[%clk 0:00:03]} 63. Rc8 {[%clk 0:00:41]}  Rxf5+ {[%clk 0:00:03]} 64. Kg3 {[%clk 0:00:41]}  Rg5+ {[%clk 0:00:03]} 65. Kh4 {[%clk 0:00:42]}  Rg4+ {[%clk 0:00:04]} 66. Kxh5 {[%clk 0:00:42]}  Ra4 {[%clk 0:00:05]} 67. Rf8+ {[%clk 0:00:42]}  Ke5 {[%clk 0:00:05]} 68. Kg5 {[%clk 0:00:42]}  Kd6 {[%clk 0:00:06]} 69. Re8 {[%clk 0:00:42]}  Kc5 {[%clk 0:00:06]} 70. Kf5 {[%clk 0:00:42]}  Kb5 {[%clk 0:00:07]} 71. Ke5 {[%clk 0:00:43]}  Rc4 {[%clk 0:00:08]} 72. Kd5 {[%clk 0:00:43]}  Rc5+ {[%clk 0:00:09]} 73. Kd4 {[%clk 0:00:43]}  Rc4+ {[%clk 0:00:09]} 74. Kd3 {[%clk 0:00:44]}  Rc5 {[%clk 0:00:06]} 75. Rb8+ {[%clk 0:00:44]}  Kc6 {[%clk 0:00:06]} 76. Kd4 {[%clk 0:00:44]}  Rd5+ {[%clk 0:00:07]} 77. Kc4 {[%clk 0:00:44]}  Rc5+ {[%clk 0:00:07]} 78. Kb4 {[%clk 0:00:45]}  Rh5 {[%clk 0:00:05]} 79. Rc8+ {[%clk 0:00:43]}  Kd7 {[%clk 0:00:05]} 80. Rc4 {[%clk 0:00:43]}  Rg5 {[%clk 0:00:05]} 81. Rh4 {[%clk 0:00:42]}  Kd6 {[%clk 0:00:05]} 82. Kc4 {[%clk 0:00:42]}  Ke6 {[%clk 0:00:05]} 83. Kd4 {[%clk 0:00:43]}  Kf5 {[%clk 0:00:05]} 84. Rh8 {[%clk 0:00:43]}  Rg4+ {[%clk 0:00:05]} 85. Kd5 {[%clk 0:00:44]}  Rg5 {[%clk 0:00:05]} 86. Rf8+ {[%clk 0:00:44]}  Kg4+ {[%clk 0:00:05]} 87. Ke4 {[%clk 0:00:44]}  Rg7 {[%clk 0:00:03]} 88. Re8 {[%clk 0:00:44]}  Rg6 {[%clk 0:00:03]} 89. Re7 {[%clk 0:00:42]}  Rg8 {[%clk 0:00:02]} 90. Re6 {[%clk 0:00:42]}  Rg5 {[%clk 0:00:03]} 91. Re8 {[%clk 0:00:43]}  Rg7 {[%clk 0:00:03]} 92. Ke3 {[%clk 0:00:43]}  Rg5 {[%clk 0:00:03]} 93. Re4+ {[%clk 0:00:44]}  Kh5 {[%clk 0:00:03]} 94. Kf3 {[%clk 0:00:43]}  Kg6 {[%clk 0:00:04]} 95. Re6+ {[%clk 0:00:42]}  Kf7 {[%clk 0:00:04]} 96. Ra6 {[%clk 0:00:43]}  Rg6 {[%clk 0:00:04]} 97. Ra7+ {[%clk 0:00:43]}  Kf6 {[%clk 0:00:04]} 98. Kf4 {[%clk 0:00:43]}  Rh6 {[%clk 0:00:03]} 99. Ra6+ {[%clk 0:00:44]}  Kg7 {[%clk 0:00:04]} 100. Ra7+ {[%clk 0:00:45]}  Kg6 {[%clk 0:00:04]} 101. Kg4 {[%clk 0:00:45]}  Rh7 {[%clk 0:00:03]} 102. Ra6+ {[%clk 0:00:45]}  Kg7 {[%clk 0:00:04]} 103. Kg5 {[%clk 0:00:45]}  Kg8 {[%clk 0:00:04]} 104. Ra8+ {[%clk 0:00:45]}  Kf7 {[%clk 0:00:04]} 105. Ra7+ {[%clk 0:00:43]}  Kg8 {[%clk 0:00:04]} 106. Ra8+ {[%clk 0:00:31]}  Kf7 {[%clk 0:00:04]} 107. Ra5 {[%clk 0:00:32]}  Kg8 {[%clk 0:00:03]} 108. Kf6 {[%clk 0:00:31]}  Rf7+ {[%clk 0:00:03]} 109. Kg6 {[%clk 0:00:31]}  Rg7+ {[%clk 0:00:04]} 110. Kf6 {[%clk 0:00:32]}  Rf7+ {[%clk 0:00:04]} 111. Ke6 {[%clk 0:00:33]}  Rg7 {[%clk 0:00:03]} 112. Ra8+ {[%clk 0:00:32]}  Kh7 {[%clk 0:00:03]} 113. Kf6 {[%clk 0:00:32]}  Rg6+ {[%clk 0:00:03]} 114. Kf5 {[%clk 0:00:32]}  Rg7 {[%clk 0:00:04]} 115. Ra1 {[%clk 0:00:31]}  Kg8 {[%clk 0:00:04]} 116. Ke6 {[%clk 0:00:30]} 1/2-1/2


[Site "https://www.chess.com"]

[Event "Titled Tuesday Blitz May 16 Late 2023"]
[White "Tristan, Leonardo"]
[Black "Ognean, Mihnea-Ionut"]
[WhiteFideId "113816"]
[BlackFideId "1232347"]
[WhiteElo "2461"]
[BlackElo "2215"]
[Result "1-0"]
[Round "07"]
[TimeControl "180+2"]
[Date "2023.05.16"]
[WhiteClock "0:00:14"]
[BlackClock "0:00:29"]

1. d4 {[%clk 0:03:00]}  Nf6 {[%clk 0:02:59]} 2. Nf3 {[%clk 0:03:01]}  g6 {[%clk 0:02:56]} 3. Bf4 {[%clk 0:03:01]}  Bg7 {[%clk 0:02:56]} 4. e3 {[%clk 0:03:02]}  O-O {[%clk 0:02:56]} 5. Be2 {[%clk 0:03:02]}  d6 {[%clk 0:02:57]} 6. O-O {[%clk 0:03:03]}  Nbd7 {[%clk 0:02:51]} 7. h3 {[%clk 0:03:02]}  b6 {[%clk 0:02:51]} 8. a4 {[%clk 0:03:02]}  a6 {[%clk 0:02:51]} 9. Bh2 {[%clk 0:03:01]}  Bb7 {[%clk 0:02:51]} 10. Nbd2 {[%clk 0:03:02]}  c5 {[%clk 0:02:50]} 11. c3 {[%clk 0:03:01]}  Rc8 {[%clk 0:02:49]} 12. Bd3 {[%clk 0:03:01]}  Rc7 {[%clk 0:02:48]} 13. Qe2 {[%clk 0:03:01]}  Qa8 {[%clk 0:02:47]} 14. e4 {[%clk 0:03:01]}  cxd4 {[%clk 0:02:06]} 15. cxd4 {[%clk 0:03:01]}  Rcc8 {[%clk 0:02:07]} 16. e5 {[%clk 0:03:00]}  Nd5 {[%clk 0:02:01]} 17. e6 {[%clk 0:02:42]}  N7f6 {[%clk 0:02:00]} 18. exf7+ {[%clk 0:02:30]}  Rxf7 {[%clk 0:02:01]} 19. Ng5 {[%clk 0:02:30]}  Rff8 {[%clk 0:01:51]} 20. Rfc1 {[%clk 0:02:06]}  Rxc1+ {[%clk 0:01:47]} 21. Rxc1 {[%clk 0:02:05]}  Kh8 {[%clk 0:01:35]} 22. Ne6 {[%clk 0:01:39]}  Rc8 {[%clk 0:01:34]} 23. Re1 {[%clk 0:01:29]}  Bh6 {[%clk 0:01:28]} 24. Ne4 {[%clk 0:01:23]}  Nb4 {[%clk 0:01:08]} 25. Nxf6 {[%clk 0:01:07]}  Nxd3 {[%clk 0:01:05]} 26. Qxd3 {[%clk 0:01:02]}  exf6 {[%clk 0:01:05]} 27. Bxd6 {[%clk 0:00:57]}  Bd5 {[%clk 0:01:00]} 28. Bf4 {[%clk 0:00:30]}  Bxe6 {[%clk 0:00:47]} 29. Bxh6 {[%clk 0:00:30]}  Qd5 {[%clk 0:00:38]} 30. Qxa6 {[%clk 0:00:24]}  g5 {[%clk 0:00:38]} 31. Qxb6 {[%clk 0:00:17]}  Re8 {[%clk 0:00:37]} 32. Qc7 {[%clk 0:00:16]}  Qd7 {[%clk 0:00:29]} 33. Rxe6 {[%clk 0:00:14]} 1-0


[Site "https://www.chess.com"]

[Event "Titled Tuesday Blitz May 16 Late 2023"]
[White "Geivondian, Arman"]
[Black "Chen, Ryo"]
[WhiteFideId "24102032"]
[BlackFideId "7003072"]
[WhiteElo "2278"]
[BlackElo "2169"]
[Result "0-1"]
[Round "07"]
[TimeControl "180+2"]
[Date "2023.05.16"]
[WhiteClock "0:00:29"]
[BlackClock "0:00:11"]

1. e4 {[%clk 0:03:00]}  c5 {[%clk 0:02:59]} 2. Nf3 {[%clk 0:03:01]}  d6 {[%clk 0:03:00]} 3. Bb5+ {[%clk 0:03:01]}  Nd7 {[%clk 0:02:56]} 4. O-O {[%clk 0:03:01]}  a6 {[%clk 0:02:53]} 5. Bxd7+ {[%clk 0:03:00]}  Bxd7 {[%clk 0:02:53]} 6. d4 {[%clk 0:03:01]}  cxd4 {[%clk 0:02:51]} 7. Qxd4 {[%clk 0:03:02]}  e5 {[%clk 0:02:40]} 8. Qd3 {[%clk 0:03:02]}  Be7 {[%clk 0:02:25]} 9. c4 {[%clk 0:03:02]}  h6 {[%clk 0:02:22]} 10. Nc3 {[%clk 0:03:02]}  Nf6 {[%clk 0:02:22]} 11. h3 {[%clk 0:03:00]}  O-O {[%clk 0:02:22]} 12. Be3 {[%clk 0:03:00]}  Rc8 {[%clk 0:02:20]} 13. Nd2 {[%clk 0:03:00]}  Be6 {[%clk 0:02:10]} 14. Rac1 {[%clk 0:03:00]}  Nh5 {[%clk 0:01:55]} 15. Nd5 {[%clk 0:02:52]}  Bg5 {[%clk 0:01:41]} 16. Bxg5 {[%clk 0:02:42]}  Qxg5 {[%clk 0:01:42]} 17. Qe3 {[%clk 0:02:42]}  Bxd5 {[%clk 0:01:30]} 18. Qxg5 {[%clk 0:02:19]}  hxg5 {[%clk 0:01:28]} 19. exd5 {[%clk 0:02:19]}  Nf4 {[%clk 0:01:28]} 20. Rc2 {[%clk 0:02:17]}  b5 {[%clk 0:01:20]} 21. b3 {[%clk 0:02:14]}  bxc4 {[%clk 0:01:16]} 22. bxc4 {[%clk 0:02:15]}  f5 {[%clk 0:01:15]} 23. Rb1 {[%clk 0:02:12]}  Nxd5 {[%clk 0:01:07]} 24. Nf3 {[%clk 0:02:07]}  Nf6 {[%clk 0:01:02]} 25. Nxg5 {[%clk 0:02:06]}  d5 {[%clk 0:01:02]} 26. Rbc1 {[%clk 0:02:04]}  d4 {[%clk 0:01:02]} 27. Re1 {[%clk 0:02:01]}  d3 {[%clk 0:00:59]} 28. Rc3 {[%clk 0:01:55]}  e4 {[%clk 0:00:59]} 29. c5 {[%clk 0:01:38]}  Nd5 {[%clk 0:00:57]} 30. Rc4 {[%clk 0:01:38]}  Rfe8 {[%clk 0:00:52]} 31. c6 {[%clk 0:01:27]}  e3 {[%clk 0:00:49]} 32. fxe3 {[%clk 0:01:19]}  d2 {[%clk 0:00:49]} 33. Rd1 {[%clk 0:01:18]}  Nxe3 {[%clk 0:00:49]} 34. Rxd2 {[%clk 0:01:16]}  Nxc4 {[%clk 0:00:49]} 35. Rd7 {[%clk 0:01:15]}  Ne5 {[%clk 0:00:48]} 36. Ra7 {[%clk 0:01:15]}  Rxc6 {[%clk 0:00:47]} 37. Kf2 {[%clk 0:01:15]}  Rg6 {[%clk 0:00:46]} 38. h4 {[%clk 0:01:15]}  Ng4+ {[%clk 0:00:46]} 39. Kg3 {[%clk 0:01:15]}  Rd6 {[%clk 0:00:45]} 40. Kf4 {[%clk 0:01:12]}  g6 {[%clk 0:00:44]} 41. Nf3 {[%clk 0:01:09]}  Nf6 {[%clk 0:00:42]} 42. Kg5 {[%clk 0:01:08]}  Nh7+ {[%clk 0:00:40]} 43. Kh6 {[%clk 0:01:04]}  g5+ {[%clk 0:00:40]} 44. Kh5 {[%clk 0:01:04]}  gxh4 {[%clk 0:00:39]} 45. Nxh4 {[%clk 0:01:05]}  Nf6+ {[%clk 0:00:37]} 46. Kg5 {[%clk 0:01:03]}  Ne4+ {[%clk 0:00:36]} 47. Kf4 {[%clk 0:01:03]}  Rh6 {[%clk 0:00:31]} 48. Nxf5 {[%clk 0:01:03]}  Rf6 {[%clk 0:00:24]} 49. g4 {[%clk 0:01:01]}  Nd6 {[%clk 0:00:23]} 50. Kg5 {[%clk 0:00:58]}  Rfe6 {[%clk 0:00:20]} 51. Nh6+ {[%clk 0:00:38]}  Kf8 {[%clk 0:00:20]} 52. Kh5 {[%clk 0:00:39]}  Re1 {[%clk 0:00:18]} 53. g5 {[%clk 0:00:38]}  Rh1+ {[%clk 0:00:17]} 54. Kg4 {[%clk 0:00:34]}  Re4+ {[%clk 0:00:16]} 55. Kf3 {[%clk 0:00:34]}  Rf1+ {[%clk 0:00:17]} 56. Kg2 {[%clk 0:00:35]}  Rff4 {[%clk 0:00:17]} 57. Rxa6 {[%clk 0:00:34]}  Nf7 {[%clk 0:00:16]} 58. Ra8+ {[%clk 0:00:32]}  Kg7 {[%clk 0:00:16]} 59. Ra7 {[%clk 0:00:33]}  Kg6 {[%clk 0:00:16]} 60. Kg3 {[%clk 0:00:30]}  Nxh6 {[%clk 0:00:15]} 61. gxh6 {[%clk 0:00:29]}  Kxh6 {[%clk 0:00:15]} 62. Ra6+ {[%clk 0:00:30]}  Kg5 {[%clk 0:00:15]} 63. Ra5+ {[%clk 0:00:31]}  Rf5 {[%clk 0:00:15]} 64. Ra3 {[%clk 0:00:31]}  Rg4+ {[%clk 0:00:15]} 65. Kh3 {[%clk 0:00:32]}  Rg1 {[%clk 0:00:15]} 66. Kh2 {[%clk 0:00:32]}  Rgf1 {[%clk 0:00:15]} 67. Ra8 {[%clk 0:00:32]}  Kf4 {[%clk 0:00:14]} 68. Kg2 {[%clk 0:00:32]}  Re1 {[%clk 0:00:13]} 69. Kf2 {[%clk 0:00:32]}  Ree5 {[%clk 0:00:12]} 70. Ra4+ {[%clk 0:00:32]}  Kg5+ {[%clk 0:00:12]} 71. Kg3 {[%clk 0:00:32]}  Kf6 {[%clk 0:00:12]} 72. Ra6+ {[%clk 0:00:32]}  Re6 {[%clk 0:00:13]} 73. Ra8 {[%clk 0:00:32]}  Ke5 {[%clk 0:00:13]} 74. Rg8 {[%clk 0:00:32]}  Re7 {[%clk 0:00:13]} 75. Kg4 {[%clk 0:00:31]}  Rff7 {[%clk 0:00:13]} 76. Kh5 {[%clk 0:00:29]}  Rg7 {[%clk 0:00:11]} 77. Ra8 {[%clk 0:00:28]}  Rh7+ {[%clk 0:00:11]} 78. Kg6 {[%clk 0:00:29]}  Reg7# {[%clk 0:00:11]} 0-1


[Site "https://www.chess.com"]

[Event "Titled Tuesday Blitz May 16 Late 2023"]
[White "Shapiro, Viktor"]
[Black "Mendez Fortes, Eduardo Jesus"]
[WhiteFideId "4175700"]
[BlackFideId "3502376"]
[WhiteElo "2152"]
[BlackElo "2307"]
[Result "0-1"]
[Round "07"]
[TimeControl "180+2"]
[Date "2023.05.16"]
[WhiteClock "0:00:06"]
[BlackClock "0:01:43"]

1. Nf3 {[%clk 0:02:57]}  d5 {[%clk 0:02:58]} 2. c4 {[%clk 0:02:56]}  e6 {[%clk 0:02:57]} 3. g3 {[%clk 0:02:55]}  Nf6 {[%clk 0:02:56]} 4. Bg2 {[%clk 0:02:55]}  Be7 {[%clk 0:02:56]} 5. O-O {[%clk 0:02:55]}  O-O {[%clk 0:02:56]} 6. d4 {[%clk 0:02:55]}  dxc4 {[%clk 0:02:56]} 7. Qa4 {[%clk 0:02:55]}  a6 {[%clk 0:02:56]} 8. Qxc4 {[%clk 0:02:55]}  b5 {[%clk 0:02:57]} 9. Qc2 {[%clk 0:02:55]}  Bb7 {[%clk 0:02:58]} 10. Nc3 {[%clk 0:02:47]}  Nc6 {[%clk 0:02:57]} 11. Rd1 {[%clk 0:02:46]}  Nb4 {[%clk 0:02:57]} 12. Qd2 {[%clk 0:02:43]}  Qc8 {[%clk 0:02:57]} 13. b3 {[%clk 0:02:29]}  Rd8 {[%clk 0:02:54]} 14. Bb2 {[%clk 0:02:22]}  c5 {[%clk 0:02:52]} 15. e3 {[%clk 0:02:21]}  cxd4 {[%clk 0:02:49]} 16. exd4 {[%clk 0:02:18]}  Nbd5 {[%clk 0:02:50]} 17. Nxd5 {[%clk 0:02:17]}  Bxd5 {[%clk 0:02:50]} 18. Rac1 {[%clk 0:02:16]}  Qb7 {[%clk 0:02:49]} 19. Qe2 {[%clk 0:02:15]}  a5 {[%clk 0:02:45]} 20. Nh4 {[%clk 0:02:09]}  a4 {[%clk 0:02:42]} 21. Bxd5 {[%clk 0:02:08]}  Nxd5 {[%clk 0:02:40]} 22. Nf3 {[%clk 0:02:02]}  axb3 {[%clk 0:02:38]} 23. axb3 {[%clk 0:02:02]}  Ra2 {[%clk 0:02:38]} 24. Rd2 {[%clk 0:01:36]}  h6 {[%clk 0:02:31]} 25. Ne5 {[%clk 0:01:33]}  Bf6 {[%clk 0:02:21]} 26. Nc6 {[%clk 0:01:28]}  Rc8 {[%clk 0:02:16]} 27. Ne5 {[%clk 0:01:07]}  Rxc1+ {[%clk 0:02:04]} 28. Bxc1 {[%clk 0:01:07]}  Ra1 {[%clk 0:02:02]} 29. Rc2 {[%clk 0:01:04]}  Nb4 {[%clk 0:02:00]} 30. Rc5 {[%clk 0:00:58]}  Bxe5 {[%clk 0:01:46]} 31. dxe5 {[%clk 0:00:54]}  Qd7 {[%clk 0:01:45]} 32. Kg2 {[%clk 0:00:06]}  Nd3 {[%clk 0:01:43]} 0-1


[Site "https://www.chess.com"]

[Event "Titled Tuesday Blitz May 16 Late 2023"]
[White "Koutlas, Nikolaos"]
[Black "Schekachikhin, Maksim"]
[WhiteFideId "25827138"]
[BlackFideId "24177830"]
[WhiteElo "2215"]
[BlackElo "2272"]
[Result "1-0"]
[Round "07"]
[TimeControl "180+2"]
[Date "2023.05.16"]
[WhiteClock "0:00:10"]
[BlackClock "0:00:12"]

1. c4 {[%clk 0:03:00]}  e5 {[%clk 0:02:59]} 2. d3 {[%clk 0:02:59]}  c6 {[%clk 0:02:57]} 3. Nf3 {[%clk 0:02:59]}  Nf6 {[%clk 0:02:52]} 4. g3 {[%clk 0:02:57]}  Bb4+ {[%clk 0:02:49]} 5. Nbd2 {[%clk 0:02:56]}  d6 {[%clk 0:02:48]} 6. Bg2 {[%clk 0:02:55]}  O-O {[%clk 0:02:47]} 7. O-O {[%clk 0:02:55]}  Re8 {[%clk 0:02:48]} 8. a3 {[%clk 0:02:54]}  Ba5 {[%clk 0:02:46]} 9. b4 {[%clk 0:02:54]}  Bc7 {[%clk 0:02:39]} 10. Bb2 {[%clk 0:02:46]}  a5 {[%clk 0:02:38]} 11. e4 {[%clk 0:02:24]}  Nbd7 {[%clk 0:02:25]} 12. Re1 {[%clk 0:02:19]}  Nf8 {[%clk 0:02:23]} 13. h3 {[%clk 0:02:10]}  Ne6 {[%clk 0:02:16]} 14. Nb3 {[%clk 0:01:59]}  axb4 {[%clk 0:01:59]} 15. axb4 {[%clk 0:01:57]}  Rxa1 {[%clk 0:01:59]} 16. Qxa1 {[%clk 0:01:57]}  h5 {[%clk 0:01:56]} 17. c5 {[%clk 0:01:51]}  dxc5 {[%clk 0:01:54]} 18. Nxc5 {[%clk 0:01:49]}  Nxc5 {[%clk 0:01:54]} 19. bxc5 {[%clk 0:01:50]}  Nd7 {[%clk 0:01:53]} 20. d4 {[%clk 0:01:48]}  exd4 {[%clk 0:01:51]} 21. Bxd4 {[%clk 0:01:47]}  f6 {[%clk 0:01:50]} 22. Qa2+ {[%clk 0:01:42]}  Kh7 {[%clk 0:01:49]} 23. Qf7 {[%clk 0:01:39]}  Nf8 {[%clk 0:01:49]} 24. Ng5+ {[%clk 0:01:33]}  Kh6 {[%clk 0:01:42]} 25. h4 {[%clk 0:00:46]}  Qe7 {[%clk 0:01:34]} 26. Be3 {[%clk 0:00:27]}  Qxf7 {[%clk 0:01:24]} 27. Nxf7+ {[%clk 0:00:28]}  Kg6 {[%clk 0:01:23]} 28. Nd6 {[%clk 0:00:28]}  Bxd6 {[%clk 0:01:21]} 29. cxd6 {[%clk 0:00:29]}  Nd7 {[%clk 0:01:16]} 30. f4 {[%clk 0:00:21]}  Kf7 {[%clk 0:01:15]} 31. Bf1 {[%clk 0:00:19]}  Rxe4 {[%clk 0:01:10]} 32. Kf2 {[%clk 0:00:17]}  b5 {[%clk 0:01:05]} 33. Bg2 {[%clk 0:00:16]}  Rc4 {[%clk 0:01:04]} 34. Bf3 {[%clk 0:00:15]}  g6 {[%clk 0:01:03]} 35. Ra1 {[%clk 0:00:15]}  Nf8 {[%clk 0:00:55]} 36. Ra7+ {[%clk 0:00:14]}  Bd7 {[%clk 0:00:55]} 37. Ra8 {[%clk 0:00:11]}  b4 {[%clk 0:00:54]} 38. Rb8 {[%clk 0:00:10]}  Rc2+ {[%clk 0:00:35]} 39. Ke1 {[%clk 0:00:09]}  c5 {[%clk 0:00:23]} 40. Bd5+ {[%clk 0:00:09]}  Be6 {[%clk 0:00:23]} 41. Rxf8+ {[%clk 0:00:08]}  Kxf8 {[%clk 0:00:23]} 42. Bxe6 {[%clk 0:00:09]}  Rc3 {[%clk 0:00:20]} 43. Kd2 {[%clk 0:00:08]}  Ke8 {[%clk 0:00:19]} 44. f5 {[%clk 0:00:08]}  gxf5 {[%clk 0:00:18]} 45. Bxf5 {[%clk 0:00:09]}  Rc4 {[%clk 0:00:16]} 46. Kd3 {[%clk 0:00:08]}  Rc3+ {[%clk 0:00:16]} 47. Kd2 {[%clk 0:00:07]}  Rc4 {[%clk 0:00:16]} 48. Bf2 {[%clk 0:00:06]}  b3 {[%clk 0:00:14]} 49. Bd3 {[%clk 0:00:03]}  Rg4 {[%clk 0:00:10]} 50. Bxc5 {[%clk 0:00:02]}  Rxg3 {[%clk 0:00:10]} 51. Bb5+ {[%clk 0:00:03]}  Kf7 {[%clk 0:00:10]} 52. Bc4+ {[%clk 0:00:02]}  Ke8 {[%clk 0:00:10]} 53. Be6 {[%clk 0:00:03]}  Rg7 {[%clk 0:00:08]} 54. d7+ {[%clk 0:00:03]}  Rxd7+ {[%clk 0:00:08]} 55. Bxd7+ {[%clk 0:00:03]}  Kxd7 {[%clk 0:00:08]} 56. Kc3 {[%clk 0:00:03]}  Ke6 {[%clk 0:00:09]} 57. Kxb3 {[%clk 0:00:03]}  Kf5 {[%clk 0:00:10]} 58. Be7 {[%clk 0:00:03]}  Kg4 {[%clk 0:00:11]} 59. Bxf6 {[%clk 0:00:03]}  Kf5 {[%clk 0:00:11]} 60. Bg5 {[%clk 0:00:03]}  Kg6 {[%clk 0:00:11]} 61. Kc4 {[%clk 0:00:04]}  Kf5 {[%clk 0:00:12]} 62. Kc3 {[%clk 0:00:05]}  Kg6 {[%clk 0:00:13]} 63. Kd2 {[%clk 0:00:06]}  Kf5 {[%clk 0:00:13]} 64. Ke2 {[%clk 0:00:07]}  Ke4 {[%clk 0:00:14]} 65. Kf2 {[%clk 0:00:07]}  Kf5 {[%clk 0:00:14]} 66. Kf3 {[%clk 0:00:08]}  Ke6 {[%clk 0:00:14]} 67. Kf4 {[%clk 0:00:08]}  Kf7 {[%clk 0:00:14]} 68. Kf5 {[%clk 0:00:09]}  Kg7 {[%clk 0:00:15]} 69. Bf4 {[%clk 0:00:09]}  Kh7 {[%clk 0:00:12]} 70. Kg5 {[%clk 0:00:10]} 1-0


[Site "https://www.chess.com"]